Cogmind - Beta 12 @@@ ROGUE MODE // 2023.03.07 @ 21:32:55 Player: Erebos Result: Destroyed by G-34 Mercenary with Small Laser Performance ------------- Evolutions (1) 500 Regions Visited (2) 400 Robots Destroyed (62) 310 Value Destroyed (1420) 1420 Prototype IDs (2) 40 Alien Tech Used (0) 0 Bonus (111) 111 TOTAL SCORE: 2781 Bonus ------- High Alert Combat Kills 111 Cogmind --------- Core Integrity 0/400 Matter 280/300 Energy 149/150 System Corruption 0% Temperature Cool (6) Movement Core (150) Ox2 Location -9/Materials Parts ------- > --- POWER (2) -------- Light Ion Engine Light Ion Engine > --- PROPULSION (2) --- (None) > --- UTILITY (3) ------ Signal Interpreter ECM Suite > --- WEAPON (2) ------- Light Assault Rifle > --- INVENTORY (5) ---- Large Storage Unit Large Matter Pod (150) Structural Scanner Hacking Suite Peak State ------------ > --- POWER ------------ Improved Ion Engine Heavy Ion Engine > --- PROPULSION ------- Armored Wheel Armored Wheel > --- UTILITY ---------- Sensor Array Signal Interpreter Improved Light Armor Plating > --- WEAPON ----------- Particle Cannon Improved Grenade Launcher > --- INVENTORY -------- Heat Sink Large Matter Pod Improved Light Armor Plating Heavy Assault Rifle [Rating: 19] Favorites ----------- Power Heavy Ion Engine Engine Heavy Ion Engine Power Core Light Nuclear Core Propulsion Aluminum Leg Leg Aluminum Leg Wheel Armored Wheel Utility Signal Interpreter Device Sensor Array Storage Large Matter Pod Processor Signal Interpreter Protection Improved Light Armor Plating Weapon Light Assault Rifle Energy Gun Beam Rifle Energy Cannon Advanced Beam Cannon Ballistic Gun Light Assault Rifle Launcher Improved Grenade Launcher Special Melee Weapon Datajack Build | -11 -10 -9 ------- Run | Jun Mat Mat Slots Evolved 2 | . . 2 Power 1 | . . 1 Propulsion . | . . . Utility 1 | . . 1 Weapon . | . . . Parts Attached 84 | 12 35 37 Power 9 | 2 1 6 Engine 8 | 2 1 5 Core 1 | . . 1 Reactor . | . . . Propulsion 9 | 2 3 4 Treads . | . . . Leg 6 | 2 3 1 Wheel 3 | . . 3 Hover . | . . . Flight . | . . . Utility 27 | 1 11 15 Device 14 | 1 8 5 Storage 5 | . 1 4 Processor 2 | . 2 . Hackware . | . . . Protection 6 | . . 6 Artifact . | . . . Weapon 39 | 7 20 12 Energy Gun 7 | 4 . 3 Energy Cannon 2 | . . 2 Ballistic Gun 20 | 3 14 3 Ballistic Cannon . | . . . Launcher 9 | . 6 3 Special Weapon . | . . . Impact Weapon . | . . . Slashing Weapon . | . . . Piercing Weapon . | . . . Special Melee Weapon 1 | . . 1 Unidentified Prototypes 2 | . 1 1 Parts Lost 12 | . 1 11 Power 3 | . . 3 Propulsion 2 | . . 2 Utility 3 | . 1 2 Weapon 4 | . . 4 Highest Loss Streak 9 | . 1 9 To Critical Strikes . | . . . Average Slot Usage (%) 92 | . 96 87 Engine 15 | . 14 18 Leg 17 | . 28 4 Wheel 7 | . . 16 Device 14 | . 13 16 Processor 11 | . 11 11 Protection 2 | . . 4 Energy Gun 1 | . . 3 Energy Cannon 2 | . . 4 Ballistic Gun 14 | . 25 1 Launcher 3 | . 1 5 Naked Turns . | . . . Heaviest Build 26 | 8 16 26 Greatest Support 24 | 20 20 24 Greatest Overweight (x) 3 | . . 3 Average Overweight (x) . | . . . Largest Inventory Capacity 5 | 5 5 5 Average Capacity 5 | 5 5 5 Most Carried 5 | 4 5 5 Average Carried 3 | 2 4 4 Final Capacity 5 | 5 5 5 Final Carried 5 | 3 5 4 Class Distribution -------------------- 90% | Mutant 8% | Scavenger-Mutant Dominant Class ---------------- Mutant | -10/Materials Mutant | -9/Materials Resources | -11 -10 -9 ----------- Run | Jun Mat Mat Matter Collected 1253 | 322 576 355 Remotely . | . . . Salvage Created 1513 | 65 585 863 Parts 145 | 5 55 85 Haulers Intercepted 2 | . 1 1 Recyclers Shooed 3 | . 2 1 Parts Field Recycled . | . . . Retrieved Matter . | . . . Parts Self-Destructed . | . . . Prevented . | . . . Kills | -11 -10 -9 ------- Run | Jun Mat Mat Combat Hostiles Destroyed 42 | 1 14 27 Guns 21 | 1 9 11 Cannons 6 | . . 6 AOE 15 | . 5 10 Classes Destroyed 9 | 2 5 2 Worker 6 | 1 1 4 Builder 1 | . . 1 Hauler 2 | . 1 1 Recycler 1 | . 1 . Operator 3 | . 1 2 Watcher 7 | . 3 4 Swarmer 15 | . 6 9 Grunt 22 | 1 8 13 Sentry 5 | . . 5 Best Kill Streak 7 | 1 3 7 Combat Bots Only 6 | 1 3 6 Max Kills in Single Turn 3 | 1 3 2 Gunslinging . | . . . Exploded 3 | . 3 2 Melee . | . . . Uniques/NPCs Destroyed . | . . . Combat | -11 -10 -9 -------- Run | Jun Mat Mat Damage Taken 2106 | 52 296 1758 Core 452 | 10 39 403 Absorbed by Shields . | . . . Core Remaining (%) 88 | 96 80 . Volleys Fired 149 | 5 47 97 Largest 2 | 2 2 2 Hottest 124 | 60 53 124 Shots Fired 221 | 7 81 133 Gun 141 | 7 63 71 Cannon 44 | . . 44 Launcher 36 | . 18 18 Special . | . . . Kinetic 98 | 2 63 33 Thermal 82 | . . 82 Explosive 36 | . 18 18 Electromagnetic 5 | 5 . . Robot Hit Streak 11 | 3 11 6 Robot Miss Streak 6 | 1 4 6 Penetration Max . | . . . Secondary Targets 2 | . 2 . Max Gunslinging Chain 1 | . 1 . Shots Hit Robots 116 | 5 35 76 Core Hits 82 | 3 28 51 Critical Kills . | . . . Critical Parts Destroyed . | . . . Critical Strikes 1 | . . 1 Burn 1 | . . 1 Melee Attacks 6 | . . 6 Impact . | . . . Slashing . | . . . Piercing . | . . . Sneak Attacks 6 | . . 6 Combat Hostiles . | . . . Follow-up Attacks . | . . . Damage Inflicted 2963 | 109 822 2032 Guns 1050 | 62 503 485 Cannons 496 | . . 496 Explosions 1395 | 47 298 1050 Melee . | . . . Ramming 22 | . 21 1 Kinetic 737 | 10 503 224 Thermal 804 | 47 . 757 Explosive 1346 | . 298 1048 Electromagnetic 54 | 52 . 2 Impact . | . . . Slashing . | . . . Piercing . | . . . Highest Corruption 1 | . 1 . Average Corruption 1 | . 1 . Corruption Purged . | . . . Corruption Blocked . | . . . Effects 4 | . 4 . Message Errors 1 | . 1 . Heat Flow Errors 1 | . 1 . Energy Discharges 1 | . 1 . Misfires 1 | . 1 . Overload Shots . | . . . Overflow Damage 89 | . . 89 Projectiles 1 | . . 1 Explosions 88 | . . 88 Melee . | . . . Knockbacks . | . . . Impact . | . . . Kinetic . | . . . Secondary . | . . . Self-Inflicted Damage 71 | 20 51 . Shots 3 | 1 2 . Rammed 1 | . . 1 Targets Rammed 3 | . 2 1 Kicked 2 | . 2 . Crushed . | . . . Highest Temperature 471 | 34 196 471 Average Temperature 143 | 19 50 159 Received Heat Transfer 714 | 18 105 591 Effects 15 | . . 15 Shutdowns 5 | . . 5 Energy Bleed 1 | . . 1 Interference 4 | . . 4 Short Circuit 1 | . . 1 Damage (minor) 1 | . . 1 Damage (major) 3 | . . 3 Siege Activations . | . . . Robots Corrupted . | . . . Combat Hostiles . | . . . Parts Fried . | . . . Impact Corruptions . | . . . Robots Melted . | . . . Combat Hostiles . | . . . Parts Melted . | . . . Heat Transferred 1678 | 50 . 1628 Parts Sabotaged . | . . . Parts Stolen . | . . . Parts Stripped . | . . . Power Chain Reactions 1 | 1 . . Missiles Intercepted . | . . . Alert | -11 -10 -9 ------- Run | Jun Mat Mat Peak Influence 704 | 25 199 704 Initial 49 | . . 49 Average 136 | 2 99 394 Maximum Alert Level 3 | . . 3 Low Security (%) 77 | 100 100 14 Level 1 7 | . . 28 Level 2 14 | . . 55 Level 3 . | . . 1 Level 4 . | . . . Level 5 . | . . . High Security . | . . . Max Security . | . . . Squads Dispatched 9 | . 4 5 Investigation 7 | . 3 4 Extermination . | . . . Reinforcement 2 | . 1 1 Assault . | . . . Garrison . | . . . Intercept . | . . . Searches Triggered . | . . . Construction Impeded . | . . . Haulers Reinforced . | . . . Active Scanning Responses . | . . . Cargo Convoy Interrupts . | . . . Stealth | -11 -10 -9 --------- Run | Jun Mat Mat Distress Signals 3 | . . 3 Communications Jammed . | . . . Distress Signals . | . . . Times Spotted 62 | 1 19 42 Peak Tracking Total 7 | 1 3 7 Tactical Retreats 6 | . 1 5 Traps | -11 -10 -9 ------- Run | Jun Mat Mat Traps Triggered 1 | . 1 . Indirectly . | . . . Trap Hack Attempts . | . . . Triggered . | . . . Disarmed . | . . . Reprogrammed . | . . . Reused . | . . . Traps Extracted . | . . . Installed . | . . . Triggered . | . . . Machines | -11 -10 -9 ---------- Run | Jun Mat Mat Machines Disabled 9 | . . 9 Max in Single Turn 2 | . . 2 Machines Repaired . | . . . Machines Sabotaged . | . . . Overloaded Fab Kills . | . . . Hacking | -11 -10 -9 --------- Run | Jun Mat Mat Machines Accessed 16 | . 7 9 Terminals 12 | . 5 7 Fabricators . | . . . Repair Stations . | . . . Recycling Units 3 | . 2 1 Scanalyzers 1 | . . 1 Garrison Access . | . . . Total Hacks 53 | . 29 24 Successful 30 | . 21 9 Failed 23 | . 8 15 Catastrophic 2 | . . 2 Database Lockouts . | . . . Manual . | . . . Terminals 34 | . 17 17 Fabricators . | . . . Repair Stations . | . . . Recycling Units 15 | . 12 3 Scanalyzers 4 | . . 4 Garrison Access . | . . . Terminal Hacks 17 | . 11 6 Record 12 | . 9 3 Robot Analysis 1 | . . 1 Branch Access Points 1 | . . 1 Emergency Access Points 1 | . 1 . Terminal Index 1 | . . 1 Alert Level 1 | . 1 . Fabricator Hacks . | . . . Repair Station Hacks . | . . . Recycling Unit Hacks 13 | . 10 3 Recycle Component 2 | . 2 . Process 3 | . 2 1 Report Inventory 3 | . 2 1 Retrieve Matter 5 | . 4 1 Scanalyzer . | . . . Garrison Access Hacks . | . . . Unauthorized Hacks . | . . . Terminals . | . . . Fabricators . | . . . Repair Stations . | . . . Recycling Units . | . . . Scanalyzers . | . . . Garrison Access . | . . . Data Cores Recovered 1 | . . 1 Used . | . . . Hacking Detections 14 | . 7 7 Full Trace Events 8 | . 4 4 Feedback Events 1 | . 1 . Corruption 1 | . 1 . Feedback Blocked . | . . . Robot Schematics Acquired . | . . . Robots Built . | . . . Authchips . | . . . Time . | . . . Total Robot Build Rating . | . . . Part Schematics Acquired . | . . . Parts Built . | . . . Authchips . | . . . Time . | . . . Total Part Build Rating . | . . . Parts Repaired . | . . . Time . | . . . Parts Recycled 2 | . 2 . Recycled Matter 514 | . 337 177 Retrieved Matter 640 | . 363 277 Retrieved Components . | . . . Parts Scanalyzed . | . . . Part Schematics Acquired . | . . . Parts Damaged . | . . . Bothacking | -11 -10 -9 ------------ Run | Jun Mat Mat Used RIF Installer . | . . . Robots Hacked 4 | . . 4 Non-combat 4 | . . 4 Combat . | . . . Robot Hacks Applied 5 | . . 5 parse_system 3 | . . 3 no_distress 2 | . . 2 Relay Couplers Released . | . . . Fabnet Peak Effective % . | . . . Robots Rewired . | . . . Allies Hacked . | . . . Hacks Repelled . | . . . Allies | -11 -10 -9 -------- Run | Jun Mat Mat Total Allies . | . . . Largest Group . | . . . Highest-Rated Group . | . . . Highest-Rated Ally . | . . . Total Orders . | . . . Ally Attacks . | . . . Total Damage . | . . . Kills . | . . . Allies Corrupted . | . . . Allies Melted . | . . . Intel | -11 -10 -9 ------- Run | Jun Mat Mat Robot Analysis Total 1 | . . 1 Derelict Logs Recovered . | . . . Drone Launches . | . . . Drone Recoveries . | . . . Exploration | -11 -10 -9 ------------- Run | Jun Mat Mat Turns Passed 4868 | 2069 1506 1293 Spaces Moved 2205 | 367 1012 826 Core 69 | 44 . 25 Treads . | . . . Legs 1498 | 323 1012 163 Wheels 638 | . . 638 Hover . | . . . Flight . | . . . Fastest Speed 50 | 50 120 50 Average Speed 112 | 111 120 103 Slowest Speed 200 | 120 120 200 Overloaded Moves . | . . . Propulsion Burnouts . | . . . Robots Hopped . | . . . Cave-ins Triggered . | . . . Exploration Rate (%) 55 | 29 82 55 Regions Visited 2 Branch Regions . Pre-discovered Areas . | . . . Known Exits Taken 1 | . 1 . Unknown Exits Taken 1 | 1 . . Scrap Searched . | . . . Spaces Dug 31 | . 31 . Terrain Destroyed 209 | 5 104 100 Melee . | . . . Projectile . | . . . AOE 209 | 5 104 100 Terrain Rammed . | . . . Walls Destroyed . | . . . Machines Disabled . | . . . Actions | -11 -10 -9 --------- Run | Jun Mat Mat Total 4372 | 2022 1222 1128 Wait 1830 | 1622 86 122 Move 2203 | 366 1011 826 Hop . | . . . Pick Up 47 | 11 19 17 Fast Attach 11 | . 2 9 Attach 28 | 10 7 11 Detach 10 | 4 4 2 Swap 45 | 2 26 17 Drop 40 | 2 18 20 Fire 149 | 5 47 97 Melee 6 | . . 6 Ram 1 | . . 1 Kick 2 | . 2 . Crush . | . . . Escape Stasis . | . . . Rewire . | . . . Trap . | . . . Miscellaneous . | . . . Route ------- -11/Junkyard -10/Materials (discovered 4 exits: *Mat x3 / *Min) -9/Materials (discovered 3 exits: *Mat x2 / *Min) History --------- Turn | Location | Event 2 | -11/Junkyard | Met Revision 17 179 | -11/Junkyard | Discovered new exit (range 8) 2070 | -11/Junkyard | Entered Materials 2071 | -10/Materials | Build established: Mutant 2175 | -10/Materials | Discovered new exit (range 14) 2231 | -10/Materials | Discovered new exit (range 16) 2568 | -10/Materials | Discovered new exit (range 13) 2802 | -10/Materials | Discovered new exit (range 14) 3003 | -10/Materials | Identified exit to Materials 3171 | -10/Materials | Identified exit to Mines 3576 | -10/Materials | Entered another Materials area 3576 | -9/Materials | Evolved 2 slots: Power x1, Utility x1 3705 | -9/Materials | Identified exit to Mines 3911 | -9/Materials | Discovered new exit (range 5) 3915 | -9/Materials | Identified exit to Materials 4680 | -9/Materials | Build established: Scavenger-Mutant 4750 | -9/Materials | Discovered exit to Materials (range 13) 4761 | -9/Materials | Core integrity fell below 50% 4801 | -9/Materials | Core integrity fell below 20% 4854 | -9/Materials | Lost 9 parts (2p2n2u3w) 4869 | -9/Materials | Destroyed by G-34 Mercenary with Small Laser Last Messages --------------- Acquired 10 matter. Slammed into A-02 Transporter. Acquired Lgt. Assault Rifle. K-01 Serf collects debris. Imp. Light Armor Plating destroyed. G-34 Mercenary destroyed. K-01 Serf collects debris. Acquired 8 matter. Acquired 1 matter. K-01 Serf collects debris. Acquired 1 matter. G-34 Mercenary destroyed. K-01 Serf collects debris. Acquired 1 matter. K-01 Serf collects debris. Acquired Lgt. Ion Engine. K-01 Serf collects debris. K-01 Serf destroyed. Acquired Lgt. Ion Engine. [Achievement: First Step to Greatness] Map ----- +----------------------------------------------------+ | ????????????????# #???????????????????? | | ????????????????# #???????????????????? | | ????????????????# #???????????????????? | | ????????????????#[#???????????????????? | | ????????????#####%#???????????????????? | | ?############ /#???????????????????? | | *% %#???????????????????? | | * #???????????????????? | | !% #???????????????????? | | ??+########## #???????????????????? | | ????????????## ##???????????????????? | | ?????????????# #????????????????????? | | ?????????????# #????????????????????? | | ?????????????#=%%#????????????????????? | | ?????????????#= #????????????????????? | | ?????????????# =*#????????????????????? | | ?????????????# ####?????????????????? | | ?????????????# !##????????????????? | | ?????????????# !#????????????????? | | ?????????????# ] #????????????????? | | ?????????????+ !#????????????????? | | ?????????????#= !#????????????????? | | ?????????????#[*= !##????????????????? | | #############%=*############?????????? | | = =%=%===g #?????????? | | % =%=%%%[!g @< #?????????? | | = = %===%%! #?????????? | | ###+#############+######+####?????????? | | ??^??????????????? ??????????????????? | | ??????????????????? #?????????????????? | | ????????????????????#?????????????????? | | ??????????????????????????????????????? | | ??????????????????????????????????????? | | ??????????????????????????????????????? | | ??????????????????????????????????????? | | ??????????????????????????????????????? | | ??????????????????????????????????????? | | ??????????????????????????????????????? | | ??????????????????????????????????????? | | ??????????????????????????????????????? | | | | | | | | | | | | | | | | | | | | | +----------------------------------------------------+ Best States ------------- Heat Dissipation 35 Energy Generation 21 Energy Capacity 445 Matter Stores 300 Matter Capacity 450 Sight Range 16 Robot Scan Range 14 Terrain Scan Density 10 ECM Strength 1 Armor Coverage 150 Evasion (%) 55 Item Schematics ----------------- None Robot Schematics ------------------ None Fabricated ------------ Nothing Alien Tech Used ----------------- None Achievements -------------- First Step to Greatness Remodeling Challenges ------------ None Game ------ Seed ForceEtherialFlakker Manual? 0 Play Time 01:55:59 Cumulative 3.8 hours Start 2023.03.07 @ 19:09:10 End 2023.03.07 @ 21:32:55 Sessions 1 Manual Loads 0 Difficulty Rogue Special Mode None Game No. 2 Rogue 1 Adventurer 1 Explorer 0 Win Type - Total 0 Types 0/0/0/0/0/0/0/0/0 Lore% 10 Gallery% 6 Achievement% 8 Wizard Run 0 Options --------- ASCII 0 Keyboard 0 Movement Arrows Keybinds 0 Fullscreen 1 Font 18/X11 Map View 76x50 Tactical HUD 0 Map Filters NONE Filters NONE Steam 1 RUN: 3fd6473a-603f-4aea-8144-77ba5c5038ee